bitfinex/quotes_ETHUSD_20250724
["timestamp","ask_amount","ask_price","bid_price","bid_amount"]
[1753350849705,2.77619834,3638.3,3638.0,4.479]
[1753350849886,0.4684,3638.2,3638.0,4.479]
[1753350850209,0.8243,3638.6,3638.0,4.479]
[1753350850380,0.4684,3638.1,3638.0,4.479]
[1753350851170,0.4684,3638.1,3637.9,0.20864279]
[1753350851171,0.4684,3638.1,3637.9,4.68664279]
[1753350851370,0.4684,3638.0,3637.9,4.68664279]
[1753350851793,0.4684,3638.0,3637.9,0.20864279]
[1753350852103,1.2976,3638.0,3637.9,0.20864279]
[1753350852304,4.04636305,3638.0,3637.9,0.20864279]
[1753350852828,4.04636305,3638.0,3637.9,0.001]
[1753350853782,7.59636305,3638.0,3637.9,0.001]
[1753350854295,12.07336305,3638.0,3637.9,0.001]
[1753350855511,12.07336305,3638.0,3637.9,1e-08]
[1753350855704,26.57336305,3638.0,3637.9,1e-08]
[1753350855865,2.7492977,3637.3,3637.1,0.041]
[1753350856065,2.74911026,3637.6,3637.1,0.041]
[1753350856066,0.8197,3637.2,3637.1,0.041]
[1753350856574,1.2881,3637.2,3637.1,0.041]
[1753350856773,1.29633182,3637.2,3637.1,0.041]
[1753350859409,1.29633182,3637.2,3637.1,2.79044323]
[1753350859967,1.29633182,3637.2,3637.1,0.041]
[1753350860421,7.07330072,3637.2,3637.1,0.041]
[1753350860723,4.29633182,3637.2,3637.1,0.041]
[1753350861026,4.32393308,3637.2,3637.1,0.041]
[1753350861189,1.29633182,3637.2,3637.1,0.041]
[1753350861881,4.29633182,3637.2,3637.1,0.041]
[1753350862623,1.29633182,3637.2,3637.1,0.041]
[1753350863517,1.32393308,3637.2,3637.1,0.041]
[1753350863720,4.07330072,3637.2,3637.1,0.041]
[1753350863936,1.29633182,3637.2,3637.1,0.041]
[1753350864613,5.77033182,3637.2,3637.1,0.041]
[1753350865415,0.00823182,3637.2,3637.1,0.041]
[1753350865616,0.47663182,3637.2,3637.1,2.79044323]
[1753350866125,0.47663182,3637.2,3637.1,0.041]
[1753350866330,0.50423308,3637.2,3637.1,0.041]
[1753350866715,1.25683182,3637.2,3637.1,0.041]
[1753350868750,5.72883182,3637.2,3637.1,0.041]
[1753350871131,11.47819946,3637.2,3637.1,0.041]
[1753350874627,8.72883182,3637.2,3637.1,0.041]
[1753350875545,3.00823182,3637.2,3637.1,0.041]
[1753350875748,0.00823182,3637.2,3637.1,2.79044323]
[1753350875946,0.00823182,3637.2,3637.1,3.77224323]
[1753350876147,4.469,3638.3,3638.2,2.74861195]
[1753350876323,0.25566994,3638.3,3638.2,2.74861195]
[1753350876523,0.25566994,3638.4,3638.3,2.7485364]
[1753350876729,1.97719792,3639.1,3638.8,2.7481354]
[1753350876930,4.2406,3639.1,3638.8,2.7481354]
[1753350877124,0.66510755,3639.0,3638.8,2.7481354]
[1753350877324,0.66510755,3639.0,3638.6,2.74830863]
[1753350877325,1.90570755,3639.1,3638.6,2.74823495]
[1753350877540,2.74815873,3638.8,3638.1,2.74863785]
[1753350877743,0.46780126,3638.7,3638.1,2.74862566]
[1753350877950,0.4402,3638.7,3638.1,2.74862566]
[1753350878469,0.4402,3638.7,3638.2,2.74860204]
[1753350878873,0.4402,3638.6,3638.3,2.74853373]
[1753350879071,0.4402,3638.6,3638.2,2.74859001]
[1753350879272,0.4402,3638.6,3638.0,2.74875151]
[1753350879660,0.4402,3638.6,3638.1,2.74862033]
[1753350879860,0.4402,3638.6,3638.2,2.74859471]
[1753350880059,0.4402,3638.6,3638.1,2.7486602]
[1753350880265,0.4402,3638.6,3637.9,7.21683736]
[1753350880266,0.4402,3638.6,3638.2,2.74856484]
[1753350880650,0.4402,3638.5,3638.2,2.74856484]
[1753350881771,0.4402,3638.5,3637.9,4.468]
[1753350881936,0.4402,3638.5,3638.0,2.74876047]
[1753350882139,0.002,3638.6,3638.3,2.74853272]
[1753350882475,0.002,3638.6,3638.2,2.74858883]
[1753350882671,0.002,3638.6,3638.3,2.74852272]
[1753350882897,0.4402,3638.5,3638.2,2.74858993]
[1753350883177,0.4402,3638.5,3638.1,2.74865915]
[1753350883747,0.002,3638.6,3637.9,4.468]
[1753350884000,2.74882614,3638.0,3637.5,1.02579648]
[1753350884165,0.4402,3637.9,3637.3,4.464]
[1753350884343,0.4402,3637.9,3637.3,7.21328075]
[1753350884550,0.4402,3637.9,3637.5,2.74913189]
[1753350884765,2.74865616,3638.2,3637.3,7.21327772]
[1753350885045,2.74877257,3638.0,3637.4,2.74916906]
[1753350886074,3.03198102,3638.1,3637.4,2.74916906]
[1753350886486,2.77631108,3638.1,3637.4,2.74916906]
[1753350886863,2.77631108,3638.1,3637.5,2.74913333]
[1753350887888,0.4402,3638.2,3637.6,2.74905298]
[1753350888189,3.18882831,3638.2,3637.5,2.74911106]
[1753350889375,0.4402,3638.2,3637.4,2.74918777]
[1753350889584,2.74877782,3638.0,3637.4,2.74918777]
[1753350890684,2.74877782,3638.0,3637.4,2.9526583]
[1753350890887,2.74877782,3638.0,3637.4,7.4126583]
[1753350891052,0.4402,3638.1,3637.6,2.74905354]
[1753350891454,0.4402,3638.0,3637.6,2.74905354]
[1753350891747,0.4402,3637.9,3637.5,2.74909517]
[1753350891952,0.02760126,3638.0,3636.9,0.1535]
[1753350892185,2.74898974,3637.7,3637.2,4.459]
[1753350892487,0.4402,3637.8,3636.4,0.001]
[1753350892488,0.7873,3637.5,3636.4,0.001]
[1753350892685,2.74936764,3637.2,3636.5,7.20889634]
[1753350892986,2.74932024,3637.3,3636.7,2.74974106]
[1753350893153,2.74932024,3637.3,3636.6,2.74979302]
[1753350893354,3.19779912,3637.2,3636.6,2.74979302]
[1753350893763,0.00823148,3637.2,3636.5,4.459]
[1753350893964,0.00823148,3637.2,3636.8,0.20829779]
[1753350894150,0.00823148,3637.2,3637.1,2.94394323]
[1753350894689,0.00823148,3637.2,3637.1,2.97143766]
[1753350894887,0.00823148,3637.2,3637.1,2.94394323]
[1753350895872,0.00823148,3637.2,3637.1,2.79044323]
[1753350896074,0.00823148,3637.2,3637.1,2.94394323]
[1753350896493,0.00823148,3637.2,3637.1,2.97143766]
[1753350897568,0.00823148,3637.2,3637.1,2.94394323]
[1753350898393,0.00823148,3637.2,3637.1,2.81793766]
[1753350898560,0.00823148,3637.2,3637.1,2.97143766]
[1753350899358,0.00823148,3637.2,3637.1,3.78283766]
[1753350899562,0.00823148,3637.2,3637.1,5.68627509]
[1753350899902,0.00823148,3637.2,3637.1,5.65878066]
[1753350900067,0.8231,3638.5,3638.1,2.74865803]
[1753350900281,1.2633,3638.5,3638.0,7.2037431]
[1753350900591,1.2633,3638.5,3638.0,4.455]
[1753350900592,1.1672139,3638.4,3638.0,4.455]
[1753350900798,1.1672139,3638.4,3638.0,7.20369883]
[1753350900994,0.0082342,3638.3,3638.0,4.455]
[1753350901179,0.0082342,3638.3,3638.2,2.74861195]
[1753350902700,0.0082342,3638.3,3638.2,3.68591195]
[1753350903067,0.002,3638.6,3638.5,2.74838532]
[1753350903395,0.002,3638.6,3638.5,7.22886917]
[1753350903559,0.002,3638.6,3638.5,7.20138532]
[1753350903764,0.002,3638.6,3638.2,0.7838]
[1753350903994,0.4402,3638.5,3638.2,4.453]
[1753350904156,0.4402,3638.4,3638.3,2.7485364]
[1753350904363,0.002,3638.6,3638.5,2.74838532]
[1753350904674,0.002,3638.6,3638.5,7.20138532]
[1753350905501,0.002,3638.6,3638.5,2.74838532]
[1753350905795,0.002,3638.6,3638.5,7.20038532]
[1753350905796,0.4422,3638.6,3638.5,7.20038532]
[1753350906301,0.002,3638.6,3638.5,4.452]
[1753350906486,0.002,3638.6,3638.5,7.20038532]
[1753350908088,0.4576,3638.6,3638.4,4.45]
[1753350908289,0.4576,3638.6,3638.4,7.19844676]
[1753350908474,0.002,3638.6,3638.4,4.45]
[1753350908804,0.002,3638.6,3638.4,7.19844156]
[1753350909007,0.002,3638.6,3638.4,4.45]
[1753350909378,0.002,3638.6,3638.4,7.19843389]
[1753350909578,0.002,3638.6,3638.5,2.74838532]
[1753350909881,0.002,3638.6,3638.4,7.19843195]
[1753350910075,0.01023071,3638.6,3638.5,2.74838532]
[1753350910402,0.01023071,3638.6,3638.4,7.19844385]
[1753350910713,0.01023071,3638.6,3638.4,4.45]
[1753350910912,0.01023071,3638.6,3638.5,4.449]
[1753350911082,0.33162251,3638.6,3638.5,4.449]
[1753350911282,0.01023071,3638.6,3638.5,4.449]
[1753350911609,0.01023071,3638.6,3638.5,7.19738532]
[1753350913810,0.01023071,3638.6,3638.5,4.449]
[1753350914722,0.46583071,3638.6,3638.4,4.447]
[1753350914934,0.01023071,3638.6,3638.4,4.447]
[1753350915119,0.4556,3638.5,3638.4,4.447]
[1753350915629,0.46383071,3638.5,3638.4,4.447]
[1753350916203,0.7949,3638.4,3637.5,2.74914089]
[1753350916372,0.02760126,3638.3,3637.6,4.446]
[1753350916588,0.4556,3638.3,3637.6,4.446]
[1753350916931,0.00823041,3638.2,3637.9,2.74878623]
[1753350917234,0.00823041,3638.2,3637.9,4.446]
[1753350917594,0.00823041,3638.2,3638.1,2.7486875]
[1753350917833,0.00823041,3638.2,3638.1,7.1936875]
[1753350918104,0.002,3638.6,3638.5,2.74838532]
[1753350918701,0.4576,3638.6,3638.5,4.445]
[1753350919119,3.53143283,3638.5,3638.1,4.445]
[1753350919295,1.12932753,3638.4,3638.1,4.445]
[1753350919729,3.42219541,3638.4,3638.1,4.445]
[1753350919930,0.4556,3638.3,3638.1,4.445]
[1753350920395,0.4556,3638.3,3638.1,7.19364257]
[1753350920590,0.4556,3638.3,3638.1,2.74868147]
[1753350920844,0.4556,3638.3,3638.0,4.443]
[1753350920845,0.4556,3638.2,3638.0,4.443]
[1753350921896,0.19143275,3638.3,3638.0,4.443]
[1753350922224,0.00823046,3638.1,3638.0,4.443]
[1753350922605,0.46383046,3638.1,3637.4,0.001]
[1753350922926,0.46383046,3638.1,3637.6,2.74905481]
[1753350923127,0.46383046,3638.1,3637.5,4.443]
[1753350923128,0.79874995,3638.0,3637.5,7.19212264]
[1753350923293,0.34314995,3638.0,3637.7,2.74898893]
[1753350923494,0.4556,3637.9,3637.8,4.442]
[1753350923728,0.46383046,3637.9,3637.8,4.442]
[1753350924435,0.46383046,3637.9,3637.6,2.74903461]
[1753350924631,0.00823046,3637.9,3637.6,2.74905416]
[1753350924935,0.4556,3637.8,3637.7,4.442]
[1753350925137,0.4556,3637.8,3637.5,2.74911612]
[1753350925294,0.4556,3637.8,3637.7,4.441]
[1753350926310,0.4556,3637.8,3637.6,2.74905575]
[1753350926508,0.7509,3637.8,3637.4,0.001]
[1753350926714,0.00823046,3637.9,3637.4,0.001]
[1753350926715,0.00823046,3637.9,3637.5,4.441]
[1753350927033,0.00823046,3637.9,3637.7,2.74894697]
[1753350928227,0.00823046,3637.9,3637.7,2.74895932]
[1753350928531,0.00823046,3637.9,3637.6,2.75003949]
[1753350929317,0.00823046,3637.9,3637.6,0.001]
[1753350929716,0.46383046,3637.9,3637.6,0.001]
[1753350930139,0.46383046,3637.9,3637.6,2.75005888]
[1753350931036,0.46383046,3637.9,3637.6,0.001]
[1753350931232,0.46383046,3637.9,3637.6,2.75004757]
[1753350931408,0.46383046,3637.9,3637.6,0.001]
[1753350932520,0.00823046,3637.9,3637.6,0.001]
[1753350932859,0.4556,3637.8,3637.6,0.001]
[1753350933052,0.7596126,3637.8,3637.6,0.001]
[1753350933272,0.4556,3637.7,3637.6,0.001]
[1753350933430,4.01898974,3637.7,3637.6,0.001]
[1753350933619,1.27,3637.7,3637.6,0.001]
[1753350933952,1.27823143,3637.7,3637.6,0.001]
[1753350934122,4.42170516,3637.7,3637.6,0.001]
[1753350934317,4.42993659,3637.7,3637.6,0.001]
[1753350934637,1.68094685,3637.7,3637.6,0.001]
[1753350934952,4.42993659,3637.7,3637.6,0.001]
[1753350935650,1.68094685,3637.7,3637.6,0.001]
[1753350935851,4.42993659,3637.7,3637.6,0.001]
[1753350939553,7.42993659,3637.7,3637.6,0.001]
[1753350941928,11.86393659,3637.7,3637.6,0.001]
[1753350950980,13.00407927,3637.7,3637.6,0.001]
[1753350951185,13.00413118,3637.7,3637.6,0.001]
[1753350951368,27.50413118,3637.7,3637.6,0.001]
[1753350951555,27.76044129,3637.7,3637.6,0.001]
[1753350952171,25.01145155,3637.7,3637.6,0.001]
[1753350952579,24.75514144,3637.7,3637.6,0.001]
[1753350953086,24.16494685,3637.7,3637.6,0.001]
[1753350953484,3.00823143,3637.7,3637.6,0.001]
[1753350953676,4.43623143,3637.7,3637.6,2.75006531]
[1753350953877,4.43623143,3637.7,3637.6,0.001]
[1753350954282,4.89043143,3637.7,3637.6,0.001]
[1753350955280,6.19963143,3637.7,3637.6,0.001]
[1753350955478,9.8223547,3637.7,3637.6,0.001]
[1753350955679,0.55,3637.5,3637.4,0.001]
[1753350956007,8.76380126,3637.5,3637.4,0.001]
[1753350956304,9.1904,3637.5,3637.4,0.001]
[1753350956467,9.19863456,3637.5,3637.4,0.001]
[1753350956664,10.19427177,3637.5,3637.4,0.001]
[1753350959002,1.35808818,3637.5,3637.4,0.001]
[1753350959201,4.43323456,3637.5,3637.4,0.001]
[1753350959499,0.55,3637.2,3637.1,0.041]
[1753350959679,7.975,3637.2,3637.1,0.041]
[1753350959881,8.89851346,3637.2,3637.1,0.041]
[1753350960081,8.80271346,3637.2,3637.1,0.041]
[1753350960303,8.35674802,3637.2,3637.1,0.041]
[1753350960479,7.43323456,3637.2,3637.1,0.041]
[1753350964022,7.88743456,3637.2,3637.1,0.041]
[1753350965580,0.00823456,3637.2,3637.1,2.79044323]
[1753350965785,4.43023456,3637.2,3637.1,2.79044323]
[1753350965988,0.00823456,3637.2,3637.1,2.79044323]
[1753350966312,4.43023456,3637.2,3637.1,2.79044323]
[1753350966513,0.00823456,3637.2,3637.1,2.79044323]
[1753350967617,0.00823456,3637.2,3637.1,2.94494323]
[1753350968084,0.00823456,3637.2,3637.1,2.79044323]
[1753350969244,0.00823456,3637.2,3637.1,2.94494323]
[1753350969428,0.00823456,3637.2,3637.1,4.90867816]
[1753350969593,4.42,3638.0,3637.9,2.74883861]
[1753350969795,0.00823501,3638.0,3637.9,2.74883861]
[1753350970529,0.00823501,3638.0,3637.8,2.74884271]
[1753350971037,0.002,3637.9,3637.8,2.74884271]
[1753350971402,0.01023501,3637.9,3637.8,2.74884271]
[1753350977416,0.01023501,3637.9,3637.2,4.416]
[1753350977618,0.01023501,3637.9,3637.7,2.74893832]
[1753350978155,0.01023501,3637.9,3637.3,0.56501349]
[1753350978156,0.01023501,3637.9,3637.8,2.74891417]
[1753350978943,0.01023501,3637.9,3637.7,2.74897627]
[1753350980359,0.48263501,3637.9,3637.3,0.56501349]
[1753350980652,0.48263501,3637.9,3637.6,2.74906437]
[1753350980814,0.01023501,3637.9,3637.6,2.74906437]
[1753350981019,0.4724,3637.8,3637.5,2.74911347]
[1753350981220,0.4724,3637.8,3637.4,7.16320303]
[1753350981452,0.00823501,3637.7,3637.4,7.16320303]
[1753350981835,0.00823501,3637.7,3637.6,2.74906531]
[1753350982866,0.00823501,3637.7,3637.4,4.414]
[1753350983156,0.4724,3637.6,3637.4,4.413]
[1753350983352,0.002,3637.9,3637.4,4.413]
[1753350983561,0.00823501,3637.5,3637.4,4.413]
[1753350983734,0.00823501,3637.5,3637.4,7.16221647]
[1753350984056,0.00823501,3637.5,3637.4,7.91341647]
[1753350986227,0.00823501,3637.5,3637.4,9.68315252]
[1753350988153,0.00823501,3637.5,3637.4,9.52865252]
[1753350993336,0.00823501,3637.5,3637.4,7.15721647]
[1753350993532,0.00823501,3637.5,3637.4,7.15821647]
[1753350995682,0.00823501,3637.5,3637.4,8.10971647]
[1753350996737,0.00823501,3637.5,3637.4,7.95521647]
[1753350996935,0.00823501,3637.5,3637.4,8.10971647]
[1753350997136,0.00823501,3637.5,3637.4,9.74458252]
[1753350997382,0.002,3637.9,3637.8,3.56491417]
[1753350997585,0.002,3637.9,3637.8,13.44598175]
[1753350997754,0.002,3637.9,3637.8,13.41849261]
[1753350997943,0.002,3637.9,3637.8,13.57299261]
[1753350998279,0.002,3637.9,3637.8,14.50001655]
[1753350999480,0.002,3637.9,3637.8,8.89693811]
[1753350999654,0.002,3637.9,3637.8,4.49193811]
[1753350999975,0.002,3637.9,3637.8,8.89693811]
[1753351000563,0.002,3637.9,3637.8,9.05143811]
[1753351002554,0.002,3637.9,3637.8,8.89693811]
[1753351002946,0.451,3637.9,3637.8,7.15091417]
[1753351004261,0.451,3637.9,3637.8,2.74891417]
[1753351004584,0.451,3637.9,3637.8,7.14991417]
[1753351004983,0.451,3637.9,3637.4,0.001]
[1753351005188,0.451,3637.9,3637.7,2.74898363]
[1753351005392,0.449,3637.8,3637.7,4.4]
[1753351005685,0.449,3637.8,3637.5,2.74914089]
[1753351005872,0.449,3637.7,3637.6,4.4]
[1753351006069,0.449,3637.7,3637.6,7.14905784]
[1753351009482,0.449,3637.7,3637.6,4.4]
[1753351009684,0.449,3637.7,3637.6,7.14906531]
[1753351009977,0.449,3637.7,3637.6,7.14706531]
[1753351010511,0.449,3637.7,3637.6,2.74906531]
[1753351010685,0.449,3637.7,3637.6,7.14706531]
[1753351012481,0.449,3637.7,3637.6,4.398]
[1753351013382,0.449,3637.7,3637.4,0.001]
[1753351013564,1.2791,3637.7,3637.5,4.396]
[1753351013976,0.449,3637.6,3637.5,4.396]
[1753351014172,0.449,3637.6,3637.4,0.001]
[1753351014374,0.002,3637.9,3637.5,2.74914089]
[1753351014557,0.002,3637.9,3637.7,2.7489787]
[1753351014964,0.451,3637.9,3637.8,2.74891417]
[1753351015366,0.451,3637.9,3637.6,4.396]
[1753351015966,0.451,3637.9,3637.5,4.395]
[1753351016167,0.451,3637.9,3637.5,7.14413985]
[1753351017175,0.451,3637.9,3637.6,2.74905988]
[1753351017577,0.449,3637.8,3637.6,2.74905988]
[1753351017757,0.449,3637.7,3637.6,2.74905988]
[1753351018159,0.449,3637.7,3637.5,7.14412018]
[1753351018359,0.449,3637.6,3637.5,7.14412018]
[1753351018759,0.449,3637.6,3637.4,0.001]
[1753351018988,0.8239,3637.5,3637.4,4.395]
[1753351019189,0.8239,3637.5,3637.4,0.001]
[1753351019389,1.2729,3637.5,3637.4,0.001]
[1753351020988,1.2729,3637.5,3637.4,2.75021647]
[1753351021166,1.2729,3637.5,3637.4,0.001]
[1753351021366,0.449,3637.5,3637.4,2.75021647]
[1753351022112,0.449,3637.5,3637.4,0.001]
[1753351026199,1.29230126,3637.5,3637.4,0.001]
[1753351027668,1.8147,3637.5,3637.4,0.001]
[1753351027868,1.99617,3637.5,3637.4,0.001]
[1753351028064,4.74531089,3637.5,3637.4,0.001]
[1753351031933,7.77291215,3637.5,3637.4,0.001]
[1753351032093,7.74531089,3637.5,3637.4,0.001]
[1753351032292,7.74531089,3637.5,3636.6,0.001]
[1753351032293,4.3595,3637.4,3636.6,0.001]
[1753351032607,3.55,3637.2,3636.6,0.001]
[1753351032808,0.55,3636.9,3636.6,0.001]
[1753351033106,1.3595,3636.7,3636.6,0.001]
[1753351033508,4.10924564,3636.7,3636.6,0.001]
[1753351033718,4.57674564,3636.7,3636.6,0.001]
[1753351033924,5.30938629,3636.7,3636.6,0.001]
[1753351034133,2.00964065,3636.7,3636.6,0.001]
[1753351034350,1.277,3636.7,3636.6,0.001]
[1753351034833,5.664,3636.7,3636.6,0.001]
[1753351035584,9.214,3636.7,3636.6,0.001]
[1753351035707,9.1794,3636.7,3636.6,0.001]
[1753351035914,9.18763338,3636.7,3636.6,0.001]
[1753351036223,10.10639672,3636.7,3636.6,0.001]
[1753351036752,12.30514236,3636.7,3636.6,0.001]
[1753351041111,6.67674236,3636.7,3636.6,0.001]
[1753351041453,4.39223338,3636.7,3636.6,0.001]
[1753351043397,0.00823338,3636.7,3636.6,3.52302126]
[1753351043602,0.00823338,3636.7,3636.6,9.1260997]
[1753351043833,0.002,3637.5,3636.6,6.37627844]
[1753351044137,0.002,3637.5,3636.7,0.1545]
[1753351044347,0.002,3637.5,3637.2,2.74932195]
[1753351045324,0.4675,3637.4,3636.9,0.7785]
[1753351045528,0.002,3637.5,3636.9,0.7785]
[1753351045731,0.002,3637.5,3636.9,0.80599594]
[1753351046040,0.002,3637.5,3637.2,2.74931967]
[1753351046638,0.002,3637.5,3637.1,2.7494133]
[1753351046839,0.002,3637.5,3637.0,2.74951883]
[1753351047037,0.002,3637.5,3637.1,2.74938378]
[1753351047905,0.002,3637.5,3637.2,2.74936156]
[1753351048334,0.002,3637.5,3637.2,2.74933568]
[1753351049101,0.002,3637.5,3636.9,1.40405744]
[1753351049406,0.4675,3637.4,3636.9,0.7785]
[1753351049634,0.4675,3637.3,3636.9,3.52807838]
[1753351049944,0.4675,3637.3,3636.9,0.7785]
[1753351050305,0.4675,3637.3,3636.9,2.74958163]
[1753351051056,0.002,3637.5,3637.1,2.74940532]
[1753351051404,0.002,3637.5,3636.8,0.0274967]
[1753351051405,0.002,3637.5,3637.2,2.74935589]
[1753351051937,0.002,3637.5,3637.3,2.74924112]
[1753351052242,0.002,3637.5,3637.4,2.74921647]
[1753351052442,0.002,3637.5,3637.2,3.56586764]
[1753351052443,0.002,3637.5,3637.3,2.74929044]
[1753351052640,0.002,3637.5,3637.4,2.74921647]
[1753351053342,0.002,3637.5,3637.3,2.74925891]
[1753351053930,0.002,3637.5,3637.2,0.8165]
[1753351053931,0.002,3637.5,3637.4,2.74921647]
[1753351054923,0.002,3637.5,3637.4,7.93871671]
[1753351055247,1e-08,3637.5,3637.4,8.73212455]
[1753351055412,1e-08,3637.5,3637.4,11.73212455]
[1753351055934,0.002,3637.9,3637.8,2.74891417]
[1753351055935,1e-08,3637.9,3637.8,2.74891417]
[1753351056248,1e-08,3637.9,3637.8,16.92688726]
[1753351056412,1e-08,3637.9,3637.8,16.89939812]
[1753351056615,1e-08,3637.9,3637.8,17.05389812]
[1753351058234,1e-08,3637.9,3637.8,12.67789812]
[1753351058439,1e-08,3637.9,3637.8,16.89739812]
[1753351058633,1e-08,3637.9,3637.8,12.52339812]
[1753351058839,1e-08,3637.9,3637.8,16.89739812]
[1753351059237,1e-08,3637.9,3637.8,4.07481968]
[1753351059414,1e-08,3637.9,3637.8,7.89801417]
[1753351062435,1e-08,3637.9,3637.8,8.05251417]
[1753351063627,1e-08,3637.9,3637.8,7.89801417]
[1753351064449,1e-08,3637.9,3637.8,8.05251417]
[1753351065830,1e-08,3637.9,3637.8,3.52501417]
[1753351066036,1e-08,3637.9,3637.8,9.33382927]
[1753351066231,1e-08,3637.9,3637.8,9.46084013]
[1753351067889,1e-08,3637.9,3637.8,12.46084013]
[1753351070891,1e-08,3637.9,3637.8,12.59884623]
[1753351071376,1e-08,3637.9,3637.8,12.46084013]
[1753351072206,0.002,3638.3,3638.2,2.74861195]
[1753351072493,0.002,3638.6,3638.5,14.34263012]
[1753351072783,0.002,3638.6,3638.5,18.86313012]
[1753351074370,1e-08,3639.0,3638.9,2.74808321]
[1753351074578,1e-08,3639.0,3638.9,10.14056404]
[1753351074758,1e-08,3639.0,3638.9,5.74808321]
[1753351074957,1e-08,3639.0,3638.9,10.74459129]
[1753351075768,1e-08,3639.0,3638.9,11.67249129]
[1753351076863,1e-08,3639.7,3639.3,2.74778116]
[1753351077062,1e-08,3639.7,3639.3,10.91165897]
[1753351077266,1e-08,3639.7,3639.3,10.88418116]
[1753351077472,1e-08,3639.7,3639.3,7.93250712]
[1753351077661,1e-08,3639.7,3639.3,12.29550712]
[1753351078356,1e-08,3639.7,3639.3,7.93250712]
[1753351078592,0.4731,3639.6,3639.3,7.10978116]
[1753351078892,1e-08,3639.7,3639.3,7.10978116]
[1753351079689,0.47310001,3639.7,3639.3,2.74778116]
[1753351080000,0.4751,3639.4,3639.3,7.10978116]
[1753351080159,0.4751,3639.4,3639.3,7.31951338]
[1753351080359,0.4751,3639.4,3639.3,2.95751338]
[1753351080588,0.4751,3639.4,3639.3,7.31851338]
[1753351081163,0.4751,3639.4,3639.3,2.95751338]
[1753351081365,0.4751,3639.4,3639.3,7.31851338]
[1753351082570,0.002,3639.4,3639.3,7.31851338]
[1753351083503,0.002,3639.4,3639.3,8.32515412]
[1753351084890,0.4751,3639.4,3639.3,7.31851338]
[1753351085095,0.4751,3639.4,3639.3,7.31651338]
[1753351085989,0.4751,3639.4,3639.3,0.20973222]
[1753351086183,0.4751,3639.4,3639.3,7.10578116]
[1753351086382,0.4751,3639.4,3639.2,2.74782721]
[1753351086598,0.4751,3639.4,3639.3,7.10578116]
[1753351086987,0.4751,3639.4,3639.3,0.2017323]
[1753351087184,0.4751,3639.4,3639.3,4.358]
[1753351087607,0.4751,3639.4,3639.3,4.357]
[1753351088392,0.4714,3639.4,3639.3,7.10478116]
[1753351089608,0.4714,3639.4,3639.3,7.30962751]
[1753351090118,0.4714,3639.4,3639.3,4.56184635]
[1753351090705,0.4714,3639.4,3639.2,2.74783576]
[1753351090909,0.4714,3639.4,3639.0,0.20713036]
[1753351091215,0.81450126,3639.3,3639.1,4.356]
[1753351091590,0.4694,3639.2,3638.7,2.74819178]
[1753351091790,0.4694,3639.2,3638.8,4.356]
[1753351092004,0.4694,3639.1,3638.9,4.356]
[1753351092326,0.4694,3639.0,3638.9,4.356]
[1753351092692,0.4694,3639.0,3638.8,2.74812718]
[1753351092914,0.7869,3639.3,3638.9,4.355]
[1753351093505,0.4694,3639.2,3638.9,4.355]
[1753351093714,0.4694,3639.2,3639.0,4.355]
[1753351093891,0.7869,3639.3,3638.8,2.74814424]
[1753351094090,1.2563,3639.3,3639.0,2.74793548]
[1753351094319,1.2563,3639.3,3639.0,7.10293548]
[1753351094320,0.4694,3639.2,3639.0,7.10293548]
[1753351094522,0.4694,3639.1,3639.0,7.10293548]
[1753351095134,0.7869,3639.3,3639.0,4.355]
[1753351095293,0.002,3639.4,3639.0,4.355]
[1753351095294,0.002,3639.4,3639.3,2.74778116]
[1753351095490,0.4694,3639.3,3638.7,1.02341285]
[1753351095691,0.81920126,3639.2,3638.8,4.354]
[1753351095996,0.4694,3639.1,3638.8,4.354]
[1753351096788,0.4694,3639.1,3638.9,4.354]
[1753351097113,0.4694,3639.1,3639.0,4.354]
[1753351097512,0.002,3639.4,3639.1,2.74793218]
[1753351097731,0.002,3639.4,3639.2,4.353]
[1753351098530,0.002,3639.4,3639.2,7.1008133]
[1753351098820,0.4714,3639.4,3639.3,2.74778116]
[1753351100227,0.4714,3639.4,3639.2,7.10083853]
[1753351101122,0.002,3639.4,3639.2,7.10083853]
[1753351101335,0.4694,3639.3,3639.2,7.10083853]
[1753351102115,0.4694,3639.3,3639.2,4.352]
[1753351102307,0.4694,3639.3,3638.8,2.74812675]
[1753351102507,0.4694,3639.2,3639.1,2.74792642]
[1753351102710,0.4694,3639.2,3639.1,7.09892642]
[1753351103396,0.002,3639.4,3639.3,2.74778116]
[1753351103596,0.002,3639.4,3639.3,7.09878116]
[1753351103899,0.4714,3639.4,3639.3,7.09878116]
[1753351104315,0.002,3639.4,3639.3,7.09878116]
[1753351106639,1.2602,3639.4,3638.7,0.20635332]
[1753351106817,0.4714,3639.4,3638.8,0.02748158]
[1753351107017,0.4714,3639.4,3639.3,2.74778116]
[1753351107018,0.002,3639.4,3639.3,2.74778116]
[1753351107218,0.002,3639.4,3639.3,7.09678116]
[1753351112362,0.002,3639.4,3639.3,7.90288116]
[1753351113351,0.002,3639.4,3639.3,10.90288116]
[1753351113537,0.002,3639.4,3639.3,13.06733031]
[1753351116467,0.002,3639.4,3639.3,13.22183031]
[1753351117366,1e-08,3639.7,3639.6,2.74755467]
[1753351117673,1e-08,3639.7,3639.6,10.94243021]
[1753351117834,1e-08,3639.7,3639.6,11.06945467]
[1753351118034,1e-08,3639.7,3639.6,11.46689551]
[1753351118468,1e-08,3639.8,3639.7,5.74747918]
[1753351118761,1e-08,3639.8,3639.7,6.69337918]
[1753351119165,1e-08,3639.9,3639.8,6.5368037]
[1753351119369,1e-08,3640.2,3640.1,6.53657727]
[1753351119570,0.8143,3641.6,3640.8,2.74664908]
[1753351119770,0.4453,3641.5,3640.8,7.11811557]
[1753351120071,0.4453,3641.5,3640.8,7.09064908]